bitfinex/quotes_BTCUSD_20240918
["timestamp","ask_amount","ask_price","bid_price","bid_amount"]
[1726665714013,0.0036131,60141.0,60140.0,1.86721573]
[1726665714238,0.0036131,60141.0,60140.0,2.44266117]
[1726665714467,0.0036131,60141.0,60140.0,2.44466117]
[1726665714691,0.0039031,60159.0,60145.0,1.71974]
[1726665714919,0.0039031,60159.0,60145.0,2.28225975]
[1726665715139,0.0039031,60159.0,60152.0,1.263718]
[1726665715364,0.0039031,60159.0,60152.0,1.95074094]
[1726665715590,0.0039031,60159.0,60152.0,1.98410094]
[1726665715810,0.0039031,60159.0,60152.0,2.12370752]
[1726665716539,0.0039031,60159.0,60152.0,2.07410094]
[1726665717444,0.0039031,60159.0,60152.0,2.12360158]
[1726665717671,0.0039031,60159.0,60152.0,2.07610094]
[1726665717913,0.0039031,60159.0,60152.0,2.42379967]
[1726665718155,0.0039031,60159.0,60152.0,2.43382331]
[1726665718397,0.0039031,60159.0,60152.0,2.10012458]
[1726665719191,0.0039031,60159.0,60152.0,2.19192458]
[1726665719421,0.0039031,60159.0,60152.0,2.23938353]
[1726665720181,0.0039031,60159.0,60152.0,2.08810094]
[1726665720417,0.0039031,60159.0,60152.0,2.02810094]
[1726665720654,0.0039031,60159.0,60152.0,1.46919627]
[1726665720887,0.0775,60158.0,60152.0,1.315998]
[1726665721603,0.0775,60158.0,60152.0,1.345998]
[1726665722037,0.0775,60158.0,60152.0,1.315998]
[1726665722255,0.0775,60158.0,60152.0,0.983507]
[1726665722502,0.261542,60153.0,60152.0,0.05228]
[1726665722743,0.023,60152.0,60128.0,0.04947568]
[1726665722974,0.36055367,60153.0,60131.0,0.24951967]
[1726665722975,0.023,60150.0,60131.0,0.24951967]
[1726665723216,0.023,60148.0,60135.0,0.166291]
[1726665723446,0.16305367,60147.0,60135.0,0.166291]
[1726665723694,0.166284,60139.0,60135.0,0.166292]
[1726665723917,0.166284,60139.0,60134.0,0.166293]
[1726665724367,0.332541,60143.0,60134.0,0.08316]
[1726665724368,0.00812675,60138.0,60134.0,0.08316]
[1726665724606,0.094,60138.0,60134.0,0.08316]
[1726665724830,0.00812675,60137.0,60135.0,0.001]
[1726665725047,0.17441475,60137.0,60129.0,0.332615]
[1726665725290,0.17441475,60137.0,60133.0,0.166296]
[1726665725291,0.00812675,60137.0,60133.0,0.166296]
[1726665725505,0.00812675,60137.0,60133.0,0.332594]
[1726665725746,0.00812675,60137.0,60134.0,0.332589]
[1726665725959,0.00812675,60137.0,60130.0,0.15319827]
[1726665726181,0.00812675,60137.0,60136.0,0.166289]
[1726665726451,0.00812675,60137.0,60136.0,0.08316]
[1726665727358,0.094,60138.0,60136.0,0.08316]
[1726665727589,0.00812675,60137.0,60136.0,0.08316]
[1726665728061,0.01012675,60137.0,60136.0,0.08316]
[1726665728298,0.00812675,60137.0,60136.0,0.08316]
[1726665729549,0.17441275,60137.0,60136.0,0.08316]
[1726665729792,0.75233942,60137.0,60136.0,0.08316]
[1726665730243,0.09042675,60137.0,60136.0,0.08316]
[1726665730484,0.09042675,60137.0,60136.0,0.582028]
[1726665730717,0.001,60137.0,60136.0,0.914607]
[1726665730939,0.16627,60143.0,60139.0,0.16628]
[1726665731151,0.166266,60145.0,60139.0,0.08316]
[1726665731370,0.166266,60145.0,60141.0,0.166274]
[1726665731371,0.32931967,60145.0,60141.0,0.166274]
[1726665731619,0.17412985,60144.0,60141.0,0.08316]
[1726665731853,0.00786185,60144.0,60139.0,0.332557]
[1726665732082,0.17412985,60144.0,60137.0,0.332573]
[1726665732306,0.17412985,60144.0,60140.0,0.166277]
[1726665732528,0.16627,60143.0,60137.0,0.332573]
[1726665732744,0.00786185,60144.0,60137.0,0.166284]
[1726665732745,0.34040185,60144.0,60137.0,0.166284]
[1726665732974,0.166273,60142.0,60138.0,0.166283]
[1726665733198,0.166273,60142.0,60138.0,0.166282]
[1726665733424,0.00786185,60141.0,60138.0,0.249442]
[1726665733873,0.00786185,60141.0,60139.0,0.166279]
[1726665734131,0.16305367,60145.0,60139.0,0.08316]
[1726665734336,0.00786185,60140.0,60139.0,0.581999]
[1726665734570,0.16627,60144.0,60140.0,0.166278]
[1726665734797,0.16627,60144.0,60140.0,0.249438]
[1726665735027,0.166269,60144.0,60140.0,0.249438]
[1726665735491,0.16305367,60145.0,60142.0,0.166272]
[1726665735747,0.168268,60144.0,60142.0,0.08316]
[1726665736422,0.002,60144.0,60143.0,0.16627]
[1726665736639,0.002,60144.0,60143.0,0.24943]
[1726665737100,0.002,60144.0,60143.0,0.08316]
[1726665737744,0.16305367,60145.0,60143.0,0.08316]
[1726665738168,0.16505367,60145.0,60144.0,0.166267]
[1726665738392,0.002,60145.0,60144.0,0.914497]
[1726665738641,0.1653,60156.0,60152.0,0.831227]
[1726665738922,0.0039031,60159.0,60152.0,0.914387]
[1726665739139,0.0039031,60159.0,60152.0,1.246878]
[1726665739649,0.0039031,60159.0,60152.0,0.914387]
[1726665741224,0.0039031,60159.0,60152.0,0.249405]
[1726665741437,0.166235,60156.0,60152.0,0.249405]
[1726665741642,0.00778587,60153.0,60152.0,0.249405]
[1726665742143,0.00778587,60153.0,60152.0,0.584896]
[1726665742376,0.00778587,60153.0,60152.0,0.581896]
[1726665742593,0.00878587,60153.0,60152.0,0.581896]
[1726665743034,0.00878587,60153.0,60152.0,0.08316]
[1726665743247,1.09485154,60153.0,60152.0,0.08316]
[1726665743471,1.53223654,60153.0,60152.0,0.08316]
[1726665743902,0.166267,60144.0,60143.0,0.001642]
[1726665744126,0.68485567,60144.0,60143.0,0.001642]
[1726665744355,1.02520278,60144.0,60143.0,0.001642]
[1726665746502,1.02820278,60144.0,60143.0,0.002642]
[1726665748308,0.69566778,60144.0,60143.0,0.002642]
[1726665748776,1.02820278,60144.0,60143.0,0.002642]
[1726665749550,0.69566778,60144.0,60143.0,0.002642]
[1726665749794,1.02820278,60144.0,60143.0,0.002642]
[1726665750011,1.02520278,60144.0,60143.0,0.001642]
[1726665750448,1.02520278,60144.0,60143.0,0.002642]
[1726665750449,1.02820278,60144.0,60143.0,0.002642]
[1726665750671,0.69266778,60144.0,60143.0,0.001642]
[1726665750891,1.02520278,60144.0,60143.0,0.001642]
[1726665751111,1.02820278,60144.0,60143.0,0.002642]
[1726665752002,0.69566778,60144.0,60143.0,0.002642]
[1726665753088,0.69266778,60144.0,60143.0,0.001642]
[1726665753313,0.69566778,60144.0,60143.0,0.002642]
[1726665753528,0.36313278,60144.0,60143.0,0.002642]
[1726665753788,0.69566778,60144.0,60143.0,0.002642]
[1726665754009,0.01081211,60144.0,60143.0,0.002642]
[1726665754244,0.01081211,60144.0,60143.0,0.168912]
[1726665754683,0.01081211,60144.0,60143.0,0.085802]
[1726665755341,0.01081211,60144.0,60143.0,0.252072]
[1726665756432,0.00781211,60144.0,60143.0,0.251072]
[1726665756653,0.002,60144.0,60143.0,0.583612]
[1726665757147,0.002,60144.0,60143.0,1.248692]
[1726665757807,0.002,60144.0,60143.0,0.916152]
[1726665758030,0.284211,60156.0,60147.0,0.332516]
[1726665758252,0.332486,60153.0,60147.0,0.08316]
[1726665758479,0.16625,60151.0,60147.0,0.08316]
[1726665758695,0.17398839,60150.0,60147.0,0.08316]
[1726665758919,0.16305367,60149.0,60147.0,0.08316]
[1726665759137,0.166256,60148.0,60147.0,0.08316]
[1726665759362,1.00218231,60148.0,60147.0,0.08316]
[1726665760052,0.332521,60147.0,60143.0,0.003642]
[1726665760248,0.166266,60145.0,60143.0,0.001642]
[1726665760463,0.17090031,60144.0,60143.0,0.001642]
[1726665761376,0.17090031,60144.0,60143.0,0.002642]
[1726665761617,0.17090031,60144.0,60143.0,0.085802]
[1726665761834,0.17090031,60144.0,60143.0,0.084802]
[1726665762057,0.17390031,60144.0,60143.0,0.084802]
[1726665762493,0.50643531,60144.0,60143.0,0.084802]
[1726665762725,1.00523731,60144.0,60143.0,0.084802]
[1726665762942,1.02823731,60144.0,60143.0,0.084802]
[1726665764238,0.69570231,60144.0,60143.0,0.084802]
[1726665767483,0.17390031,60144.0,60143.0,0.084802]
[1726665767706,0.17390031,60144.0,60143.0,0.251072]
[1726665769030,0.17090031,60144.0,60143.0,0.251072]
[1726665769248,0.17390031,60144.0,60143.0,0.084802]
[1726665769688,0.17390031,60144.0,60143.0,0.251072]
[1726665769903,0.17390031,60144.0,60143.0,0.084802]
[1726665770347,0.17390031,60144.0,60143.0,0.251072]
[1726665770565,0.17390031,60144.0,60143.0,0.084802]
[1726665771276,0.17390031,60144.0,60143.0,0.251072]
[1726665771762,0.17390031,60144.0,60143.0,0.084802]
[1726665772871,0.17390031,60144.0,60143.0,0.251072]
[1726665773092,0.17390031,60144.0,60143.0,0.916152]
[1726665773325,0.01084664,60144.0,60143.0,1.248692]
[1726665773578,0.003,60144.0,60143.0,1.248692]
[1726665774242,0.1,60155.0,60149.0,0.332505]
[1726665774457,0.332428,60164.0,60151.0,0.166248]
[1726665774685,0.332428,60164.0,60151.0,0.581904]
[1726665774686,0.332438,60162.0,60151.0,0.581904]
[1726665774898,0.6473301,60159.0,60151.0,0.9144]
[1726665775116,0.0039031,60159.0,60151.0,1.246896]
[1726665775370,0.0039031,60159.0,60151.0,0.9144]
[1726665775782,0.003821,60152.0,60151.0,0.9154]
[1726665775995,0.003821,60152.0,60151.0,1.247896]
[1726665776222,0.003821,60152.0,60151.0,1.29755323]
[1726665776742,0.003821,60152.0,60151.0,1.247896]
[1726665777171,0.003821,60152.0,60151.0,1.29749832]
[1726665777397,0.003821,60152.0,60151.0,1.342296]
[1726665777621,0.003821,60152.0,60151.0,1.75154994]
[1726665777833,0.003821,60152.0,60151.0,1.67706409]
[1726665778052,0.003821,60152.0,60151.0,1.67606409]
[1726665778053,0.000821,60152.0,60151.0,1.67606409]
[1726665778266,0.000821,60152.0,60151.0,1.75043774]
[1726665778494,0.000821,60152.0,60151.0,1.420296]
[1726665778713,0.000821,60152.0,60151.0,1.417296]
[1726665779171,0.000821,60152.0,60151.0,1.431296]
[1726665779383,0.000821,60152.0,60151.0,1.417296]
[1726665780342,0.000821,60152.0,60151.0,1.322896]
[1726665780989,0.000821,60152.0,60151.0,1.333896]
[1726665781418,0.000821,60152.0,60151.0,1.322896]
[1726665781656,0.1642921,60162.0,60159.0,0.166225]
[1726665781879,0.332424,60165.0,60160.0,0.166223]
[1726665781880,0.00804002,60161.0,60160.0,0.166223]
[1726665782283,0.166215,60163.0,60160.0,0.249383]
[1726665782506,0.00804002,60161.0,60160.0,0.249383]
[1726665782726,0.32926867,60163.0,60160.0,0.08316]
[1726665783196,0.00804002,60162.0,60160.0,0.08316]
[1726665783876,0.00804002,60162.0,60160.0,0.249383]
[1726665784117,0.00804002,60162.0,60160.0,0.08316]
[1726665784329,0.00804002,60162.0,60160.0,0.249382]
[1726665784768,0.00904002,60162.0,60160.0,0.08316]
[1726665784999,0.00904002,60162.0,60160.0,0.249382]
[1726665785217,0.00804002,60162.0,60160.0,0.249382]
[1726665785437,0.00904002,60162.0,60160.0,0.249382]
[1726665785656,0.00904002,60162.0,60161.0,0.16622]
[1726665785874,0.00904002,60162.0,60161.0,0.08316]
[1726665787688,0.00904002,60162.0,60161.0,0.24938]
[1726665787918,0.00904002,60162.0,60161.0,1.39990127]
[1726665788164,0.00804002,60162.0,60161.0,1.39990127]
[1726665788385,0.166182,60175.0,60171.0,0.166191]
[1726665788603,0.32923567,60175.0,60172.0,0.166189]
[1726665788837,0.17116569,60174.0,60172.0,0.08316]
[1726665789060,0.830935,60173.0,60172.0,0.08316]
[1726665789326,0.99398867,60173.0,60172.0,0.08316]
[1726665789540,1.00210069,60173.0,60172.0,0.08316]
[1726665789763,1.02510069,60173.0,60172.0,0.08316]
[1726665790683,0.69272669,60173.0,60172.0,0.08316]
[1726665792335,1.02510069,60173.0,60172.0,0.08316]
[1726665792549,1.02610069,60173.0,60172.0,0.08316]
[1726665792808,0.69372669,60173.0,60172.0,0.08316]
[1726665793431,1.12020069,60173.0,60172.0,0.08316]
[1726665793645,1.45257469,60173.0,60172.0,0.08316]
[1726665793895,1.45257469,60173.0,60160.0,0.001642]
[1726665793896,0.16622,60161.0,60160.0,0.001642]
[1726665794101,0.3374136,60161.0,60160.0,0.001642]
[1726665794314,0.6698546,60161.0,60160.0,0.001642]
[1726665794542,0.1711936,60161.0,60160.0,0.001642]
[1726665794779,0.1711936,60161.0,60160.0,0.167865]
[1726665795216,0.00813993,60161.0,60160.0,0.167865]
[1726665795434,0.00813993,60161.0,60160.0,0.832757]
[1726665795646,0.001821,60173.0,60160.0,0.084802]
[1726665795871,0.17118186,60172.0,60169.0,0.166196]
[1726665796110,0.17118186,60172.0,60167.0,0.332403]
[1726665796317,0.17118186,60172.0,60170.0,0.166194]
[1726665796546,0.17118186,60172.0,60167.0,0.332403]
[1726665796547,0.00812819,60172.0,60171.0,0.498579]
[1726665797007,0.000821,60173.0,60171.0,0.498579]
[1726665797008,0.000821,60173.0,60172.0,0.16619]
[1726665797223,0.000821,60173.0,60172.0,0.83095]
[1726665797440,0.00894919,60173.0,60172.0,0.83095]
[1726665797682,0.000821,60173.0,60172.0,0.58173]
[1726665798151,0.004821,60173.0,60172.0,0.24935]
[1726665798373,0.01294919,60173.0,60172.0,0.08316]
[1726665798587,0.00894919,60173.0,60172.0,0.24935]
[1726665799013,0.01194919,60173.0,60172.0,0.24935]
[1726665804751,0.01194919,60173.0,60172.0,0.91411]
[1726665804975,0.003821,60173.0,60172.0,0.91411]
[1726665805465,0.003821,60173.0,60172.0,0.24935]
[1726665805732,0.01207772,60173.0,60172.0,0.08316]
[1726665805951,0.34131839,60173.0,60172.0,0.08316]
[1726665806192,1.00606639,60173.0,60172.0,0.08316]
[1726665806432,0.67369239,60173.0,60172.0,0.08316]
[1726665808049,1.00606639,60173.0,60172.0,0.08316]
[1726665808483,0.67369239,60173.0,60172.0,0.08316]
[1726665810688,0.17513139,60173.0,60172.0,0.08316]
[1726665811409,0.34131839,60173.0,60172.0,0.08316]
[1726665812165,0.01207772,60173.0,60172.0,0.58173]
[1726665812620,0.01207772,60173.0,60172.0,0.91411]
[1726665813075,0.003821,60173.0,60172.0,1.39968827]
[1726665813793,0.003821,60173.0,60172.0,1.48108827]
[1726665814004,0.003821,60173.0,60172.0,0.99551]
[1726665814888,0.000821,60173.0,60172.0,0.99551]
[1726665815341,0.000821,60173.0,60172.0,1.00051]
[1726665816051,0.000821,60173.0,60172.0,0.91911]
[1726665821762,0.000821,60173.0,60172.0,1.25149]
[1726665822016,0.000821,60173.0,60172.0,1.40468827]
[1726665822241,0.000821,60173.0,60172.0,1.73706827]
[1726665822472,0.000821,60173.0,60172.0,2.07354355]
[1726665822705,0.000821,60173.0,60172.0,2.16494355]
[1726665822930,0.000821,60173.0,60172.0,2.18971007]
[1726665823155,0.000821,60173.0,60172.0,2.19977212]
[1726665823438,0.000821,60173.0,60172.0,2.22453865]
[1726665824394,0.000821,60173.0,60172.0,1.41717419]
[1726665824609,0.000821,60173.0,60172.0,1.34289]
[1726665825583,0.000821,60173.0,60172.0,1.49608827]
[1726665826970,0.000821,60173.0,60172.0,1.25149]
[1726665831162,0.000821,60173.0,60172.0,1.30101995]
[1726665831592,0.000821,60173.0,60172.0,1.25149]
[1726665833302,0.000821,60173.0,60172.0,1.30101995]
[1726665833763,0.000821,60173.0,60172.0,0.96863995]
[1726665834016,0.000821,60173.0,60172.0,0.91911]
[1726665834257,0.000821,60173.0,60172.0,0.08816]
[1726665834719,0.93878278,60173.0,60172.0,0.08816]
[1726665834941,1.60353078,60173.0,60172.0,0.08816]
[1726665835170,1.60353078,60173.0,60172.0,0.005]
[1726665836339,0.498645,60163.0,60162.0,0.001642]
[1726665836577,0.67007812,60163.0,60162.0,0.001642]
[1726665836851,0.67007812,60163.0,60162.0,0.070042]
[1726665838732,1.52973812,60163.0,60162.0,0.070042]
[1726665839092,1.86216812,60163.0,60162.0,0.001642]
[1726665839314,1.86216812,60163.0,60160.0,0.001642]
[1726665839315,0.884102,60161.0,60160.0,0.001642]
[1726665839545,2.05753594,60161.0,60160.0,0.001642]
[1726665839764,2.2287769,60161.0,60160.0,0.001642]
[1726665840457,2.2287769,60161.0,60143.0,0.001642]
[1726665840458,1.00753527,60144.0,60143.0,0.001642]
[1726665840672,1.63312394,60144.0,60143.0,0.001642]
[1726665840894,1.97348218,60144.0,60143.0,0.001642]
[1726665841800,1.97548218,60144.0,60143.0,0.001642]
[1726665842039,1.97348218,60144.0,60143.0,0.001642]
[1726665842720,1.98339356,60144.0,60143.0,0.001642]
[1726665842934,1.98539356,60144.0,60143.0,0.001642]
[1726665843149,1.98339356,60144.0,60143.0,0.001642]
[1726665843584,1.99739356,60144.0,60143.0,0.002642]
[1726665846032,1.65085856,60144.0,60143.0,0.001642]
[1726665846249,1.65494718,60144.0,60143.0,0.001642]
[1726665846715,1.64094718,60144.0,60143.0,0.001642]
[1726665846934,1.98083218,60144.0,60143.0,0.001642]
[1726665847155,1.64829718,60144.0,60143.0,0.001642]
[1726665847376,1.66038815,60144.0,60143.0,0.001642]
[1726665847624,1.67438815,60144.0,60143.0,0.001642]
[1726665848072,2.00692315,60144.0,60143.0,0.001642]
[1726665848297,2.01675604,60144.0,60143.0,0.001642]
[1726665848533,2.01875604,60144.0,60143.0,0.001642]
[1726665848784,2.19005606,60144.0,60143.0,0.001642]
[1726665849486,2.01076682,60144.0,60143.0,0.001642]
[1726665849743,1.34028427,60133.0,60122.0,0.24928331]
[1726665849971,1.50333794,60133.0,60122.0,0.24928331]
[1726665850208,1.5107965,60133.0,60119.0,0.25092531]
[1726665850432,1.9733925,60133.0,60119.0,0.001642]
[1726665850656,2.30027215,60133.0,60119.0,0.001642]
[1726665851332,2.30227215,60133.0,60119.0,0.001642]
[1726665851570,2.70472383,60133.0,60119.0,0.001642]
[1726665852018,2.69726527,60133.0,60119.0,0.001642]
[1726665852459,1.43133227,60120.0,60119.0,0.001642]
[1726665852682,1.92705294,60120.0,60119.0,0.001642]
[1726665852892,2.30093852,60120.0,60119.0,0.001642]
[1726665853156,2.30293852,60120.0,60119.0,0.001642]
[1726665853720,2.63560552,60120.0,60119.0,0.001642]
[1726665853934,2.30093852,60120.0,60119.0,0.001642]
[1726665854415,2.30093852,60120.0,60119.0,0.002642]
[1726665854416,2.31493852,60120.0,60119.0,0.002642]
[1726665854842,2.30093852,60120.0,60119.0,0.001642]
[1726665855062,2.31493852,60120.0,60119.0,0.002642]
[1726665855284,2.32477632,60120.0,60119.0,0.002642]
[1726665856158,2.32677632,60120.0,60119.0,0.002642]
[1726665857321,2.35287753,60120.0,60119.0,0.002642]
[1726665857565,2.33687753,60120.0,60119.0,0.001642]
[1726665858223,2.35087753,60120.0,60119.0,0.002642]
[1726665858442,1.83212495,60120.0,60119.0,0.002642]
[1726665858658,1.64892668,60120.0,60119.0,0.002642]
[1726665858884,1.55812668,60120.0,60119.0,0.002642]
[1726665859310,1.68522374,60120.0,60119.0,0.002642]
[1726665860046,1.70822374,60120.0,60119.0,0.002642]
[1726665860530,1.13172067,60120.0,60119.0,0.002642]
[1726665860960,1.11772067,60120.0,60119.0,0.001642]
[1726665861406,1.13072067,60120.0,60119.0,0.002642]
[1726665861882,1.11772067,60120.0,60119.0,0.001642]
[1726665862107,1.02672067,60120.0,60119.0,0.002642]
[1726665863009,1.17991894,60120.0,60119.0,0.002642]
[1726665865613,1.51258594,60120.0,60119.0,0.002642]
[1726665866087,1.17991894,60120.0,60119.0,0.002642]
[1726665866592,1.2060171,60120.0,60119.0,0.002642]
[1726665867289,1.5686841,60120.0,60119.0,0.002642]
[1726665868924,1.5386841,60120.0,60119.0,0.002642]
[1726665869144,1.38548583,60120.0,60119.0,0.002642]
[1726665872353,1.02672067,60120.0,60119.0,0.002642]
[1726665873543,1.01772067,60120.0,60119.0,0.001642]
[1726665875755,1.02572067,60120.0,60119.0,0.002642]
[1726665876236,0.69305367,60120.0,60119.0,0.002642]
[1726665876487,0.17105367,60120.0,60119.0,0.002642]
[1726665877022,0.67005367,60120.0,60119.0,0.002642]
[1726665878528,1.02572067,60120.0,60119.0,0.002642]
[1726665878783,1.35838767,60120.0,60119.0,0.002642]
[1726665879507,1.35038767,60120.0,60119.0,0.001642]
[1726665880007,1.35738767,60120.0,60119.0,0.002642]
[1726665881200,0.69205367,60120.0,60119.0,0.002642]
[1726665881437,0.33638667,60120.0,60119.0,0.002642]
[1726665881659,0.66905367,60120.0,60119.0,0.002642]
[1726665881928,0.33638667,60120.0,60119.0,0.002642]
[1726665882144,0.17005367,60120.0,60114.0,0.3365981]
[1726665882363,0.16305367,60119.0,60115.0,0.332695]
[1726665882583,0.16305367,60119.0,60115.0,0.401095]
[1726665882818,0.16305367,60119.0,60118.0,0.166339]
[1726665883108,0.16305367,60119.0,60118.0,0.234739]
[1726665883308,0.16305367,60119.0,60118.0,0.0684]
[1726665883533,0.16305367,60119.0,60118.0,0.234739]
[1726665883751,0.16305367,60119.0,60118.0,0.0684]
[1726665884192,0.16905367,60119.0,60118.0,0.0684]
[1726665884377,0.16305367,60119.0,60118.0,0.0684]
[1726665884827,0.16905367,60119.0,60118.0,0.0694]
[1726665885235,0.16905367,60119.0,60118.0,0.11902628]
[1726665886423,0.16905367,60119.0,60118.0,0.0694]
[1726665887072,0.16305367,60119.0,60118.0,0.0684]
[1726665887298,0.16505367,60119.0,60118.0,0.0684]
[1726665889186,0.16505367,60119.0,60118.0,0.234739]
[1726665891040,0.16505367,60119.0,60118.0,0.0684]
[1726665892215,0.16505367,60119.0,60118.0,0.234739]
[1726665892663,0.16505367,60119.0,60118.0,0.0684]
[1726665893832,0.16587467,60119.0,60118.0,0.0684]
[1726665897030,0.16587467,60119.0,60118.0,0.234739]
[1726665897291,0.16587467,60119.0,60118.0,0.0684]
[1726665899024,0.16587467,60119.0,60118.0,0.234739]
[1726665899237,0.16587467,60119.0,60118.0,0.0684]
[1726665900319,0.33221067,60119.0,60118.0,0.0684]
[1726665900575,1.02055667,60119.0,60118.0,0.0684]
[1726665900812,1.02055667,60119.0,60116.0,0.001642]
[1726665900813,0.499026,60117.0,60116.0,0.001642]
[1726665901079,1.01776367,60117.0,60116.0,0.001642]
[1726665901291,1.35044767,60117.0,60116.0,0.001642]
[1726665902824,1.01776367,60117.0,60116.0,0.001642]
[1726665903050,1.02576367,60117.0,60116.0,0.002642]
[1726665903511,1.35844767,60117.0,60116.0,0.002642]
[1726665903729,1.02576367,60117.0,60116.0,0.002642]
[1726665903940,1.35844767,60117.0,60116.0,0.002642]
[1726665904426,1.8487231,60117.0,60116.0,0.002642]
[1726665904639,2.29330203,60117.0,60116.0,0.002642]
[1726665904916,1.527303,60108.0,60107.0,0.001642]
[1726665905156,2.06595494,60108.0,60107.0,0.001642]
[1726665905399,2.41376997,60108.0,60107.0,0.001642]
[1726665906323,2.38877953,60108.0,60107.0,0.001642]
[1726665906572,2.12395494,60108.0,60107.0,0.003272]
[1726665906819,2.22369573,60108.0,60107.0,0.003272]
[1726665907238,2.23769573,60108.0,60107.0,0.003272]
[1726665907526,2.23883774,60108.0,60107.0,0.003272]
[1726665908450,2.16406182,60108.0,60107.0,0.003272]
[1726665908675,2.40189546,60108.0,60107.0,0.001642]
[1726665908916,2.40389546,60108.0,60107.0,0.001642]
[1726665909374,2.3291474,60108.0,60107.0,0.001642]
[1726665909624,2.37896019,60108.0,60107.0,0.001642]
[1726665909869,2.38685286,60108.0,60107.0,0.001642]
[1726665910131,2.33704007,60108.0,60107.0,0.001642]
[1726665910366,2.38683977,60108.0,60107.0,0.001642]
[1726665911325,2.33904007,60108.0,60107.0,0.001642]
[1726665911550,2.33704007,60108.0,60107.0,0.001642]
[1726665912097,2.08395449,60108.0,60107.0,0.001642]
[1726665912336,1.03499555,60108.0,60107.0,0.001642]
[1726665912600,0.70226155,60108.0,60107.0,0.001642]
[1726665912823,0.67615467,60108.0,60107.0,0.001642]
[1726665913055,1.00888867,60108.0,60107.0,0.001642]
[1726665914009,1.32762267,60108.0,60107.0,0.001642]
[1726665914219,1.35062267,60108.0,60107.0,0.001642]
[1726665914435,1.36162267,60108.0,60107.0,0.001642]
[1726665914652,1.01788867,60108.0,60107.0,0.001642]
[1726665915144,1.02688867,60108.0,60107.0,0.001642]
[1726665915362,0.69415467,60108.0,60107.0,0.001642]
[1726665915574,0.17205367,60108.0,60107.0,0.001642]
[1726665916224,0.67115467,60108.0,60107.0,0.001642]
[1726665916468,0.33842067,60108.0,60107.0,0.001642]
[1726665918197,0.17205367,60108.0,60107.0,0.001642]
[1726665918414,0.17205367,60108.0,60107.0,0.168011]
[1726665919090,0.009,60108.0,60107.0,1.49902627]
[1726665919306,0.009,60108.0,60107.0,1.56742627]
[1726665921619,0.000821,60117.0,60116.0,0.831725]
[1726665922075,0.000821,60117.0,60116.0,0.900125]
[1726665922528,0.000821,60117.0,60116.0,1.328715]
[1726665922758,0.000821,60117.0,60116.0,1.48191327]
[1726665923885,0.000821,60117.0,60116.0,1.328715]
[1726665924352,0.003821,60117.0,60116.0,1.48191327]
[1726665925068,0.000821,60117.0,60116.0,1.48191327]
[1726665925559,0.000821,60117.0,60116.0,1.48291327]
[1726665925804,0.000821,60117.0,60116.0,1.48191327]
[1726665926290,0.000821,60117.0,60116.0,1.48391327]
[1726665926540,0.000821,60117.0,60116.0,1.48191327]
[1726665926789,0.000821,60117.0,60116.0,1.328715]
[1726665927492,0.001821,60117.0,60116.0,1.330715]
[1726665932138,0.001821,60117.0,60116.0,1.48391327]
[1726665933059,0.001821,60117.0,60116.0,1.91860327]
[1726665933311,0.478021,60132.0,60131.0,0.166303]
[1726665933534,0.478021,60132.0,60131.0,0.831517]
[1726665933774,0.478021,60132.0,60131.0,1.164124]
[1726665934683,0.479021,60132.0,60131.0,1.166124]
[1726665935652,0.479021,60132.0,60131.0,1.234524]
[1726665937562,0.001821,60132.0,60131.0,1.234524]
[1726665938020,0.001821,60132.0,60131.0,0.901917]
[1726665939539,0.001821,60132.0,60131.0,0.0704]
[1726665939540,0.168121,60132.0,60131.0,0.0704]
[1726665939800,0.66377567,60132.0,60131.0,0.0704]
[1726665940039,0.99637667,60132.0,60131.0,0.0704]
[1726665940967,0.99537667,60132.0,60131.0,0.0684]
[1726665941193,1.01837667,60132.0,60131.0,0.0684]
[1726665941445,0.68777567,60132.0,60131.0,0.0684]
[1726665941671,0.35517467,60132.0,60131.0,0.0684]
[1726665941932,0.16587467,60132.0,60131.0,0.0684]
[1726665942182,0.16587467,60132.0,60131.0,0.234703]
[1726665942435,0.16587467,60132.0,60131.0,0.0684]
[1726665942955,0.33217467,60132.0,60131.0,0.0684]
[1726665945385,0.002821,60132.0,60131.0,0.234703]
[1726665945601,0.002821,60132.0,60131.0,1.05311527]
[1726665947566,0.000821,60132.0,60131.0,1.05311527]
[1726665947806,0.000821,60132.0,60131.0,0.901917]
[1726665950764,0.000821,60132.0,60131.0,1.38772227]
[1726665951704,0.000821,60132.0,60131.0,0.901917]
[1726665957608,0.000821,60132.0,60131.0,1.234524]
[1726665957842,0.000821,60132.0,60131.0,1.38772227]
[1726665959404,0.000821,60132.0,60131.0,1.05511527]
[1726665959892,0.000821,60132.0,60131.0,1.38772227]
[1726665960362,0.000821,60132.0,60131.0,1.05511527]
[1726665960590,0.000821,60132.0,60131.0,1.05311527]
[1726665960800,0.001821,60132.0,60131.0,1.39672227]
[1726665963367,0.001821,60132.0,60131.0,1.06411527]
[1726665963706,0.001821,60132.0,60131.0,0.910917]
[1726665965255,0.001821,60132.0,60131.0,0.57831]
[1726665966575,0.66377567,60132.0,60131.0,0.0794]
[1726665966817,1.11547667,60132.0,60131.0,0.0794]
[1726665967519,1.44807767,60132.0,60131.0,0.011]
[1726665967745,0.166325,60123.0,60119.0,0.167978]
[1726665968199,0.166325,60123.0,60120.0,0.166333]
[1726665968944,0.33264,60125.0,60120.0,0.246133]
[1726665969167,0.166326,60123.0,60120.0,0.0798]
[1726665969649,0.166326,60123.0,60120.0,0.246133]
[1726665969885,0.166326,60123.0,60120.0,0.0798]
[1726665970834,0.166326,60123.0,60120.0,0.246133]
[1726665971059,0.166326,60123.0,60120.0,0.0798]
[1726665971566,0.166326,60123.0,60120.0,0.0828]
[1726665973013,0.332648,60124.0,60120.0,0.0828]
[1726665973231,0.166328,60123.0,60120.0,0.0828]
[1726665973482,0.166329,60122.0,60120.0,0.0828]
[1726665973706,0.166323,60124.0,60120.0,0.249132]
[1726665973958,0.332628,60128.0,60120.0,0.0828]
[1726665974200,0.49568367,60127.0,60121.0,0.16633]
[1726665974437,0.166322,60124.0,60121.0,0.0798]